bitfinex/quotes_BTCUSD_20241119
["timestamp","ask_amount","ask_price","bid_price","bid_amount"]
[1732048441111,0.25,93036.0,93009.0,0.10906255]
[1732048441112,0.25,93036.0,93022.0,0.05375]
[1732048441337,0.25,93036.0,93009.0,0.10906255]
[1732048441609,0.1287,93045.0,93039.0,0.05374]
[1732048441842,0.1287,93045.0,93038.0,0.053741]
[1732048442068,0.1287,93045.0,93033.0,0.053744]
[1732048442305,0.25,93049.0,93035.0,0.053743]
[1732048442525,0.0825,93056.0,93036.0,0.10906255]
[1732048442749,0.0825,93056.0,93049.0,0.053734]
[1732048442963,0.0825,93056.0,93048.0,0.053735]
[1732048442964,0.0825,93056.0,93048.0,0.10747]
[1732048443445,0.0825,93056.0,93048.0,0.053735]
[1732048444549,0.0825,93056.0,93048.0,0.10747]
[1732048444766,0.0825,93056.0,93050.0,0.053734]
[1732048444985,0.0825,93056.0,93043.0,0.053738]
[1732048445197,0.0825,93056.0,93042.0,0.053739]
[1732048445421,0.0825,93056.0,93048.0,0.053735]
[1732048445653,0.0825,93056.0,93051.0,0.053733]
[1732048445871,0.0825,93056.0,93051.0,0.107466]
[1732048446117,0.0825,93056.0,93051.0,0.053733]
[1732048446344,0.0825,93056.0,93049.0,0.053734]
[1732048447073,0.0781652,93063.0,93049.0,0.053734]
[1732048447280,0.0757,93064.0,93049.0,0.053734]
[1732048448214,0.107455,93063.0,93049.0,0.107468]
[1732048448449,0.107455,93062.0,93047.0,0.053735]
[1732048448704,0.183153,93064.0,93049.0,0.053734]
[1732048449852,0.107454,93063.0,93049.0,0.053734]
[1732048450080,0.0757,93064.0,93037.0,0.10906255]
[1732048450301,0.10906255,93062.0,93013.0,0.01]
[1732048450587,0.023,93061.0,93030.0,0.053745]
[1732048450844,0.023,93061.0,93014.0,0.10906255]
[1732048450845,0.107468,93051.0,93016.0,0.01]
[1732048451059,0.107458,93059.0,93044.0,0.053737]
[1732048451283,0.10906255,93059.0,93047.0,0.053736]
[1732048451510,0.25,93062.0,93022.0,0.01]
[1732048451722,0.25,93062.0,93048.0,0.053735]
[1732048451950,0.25,93062.0,93046.0,0.053736]
[1732048452431,0.25,93062.0,93049.0,0.053734]
[1732048452646,0.107454,93063.0,93049.0,0.053734]
[1732048452865,0.107455,93062.0,93046.0,0.053736]
[1732048453107,0.10906255,93061.0,93026.0,0.10906255]
[1732048453371,0.214917,93059.0,93008.0,0.1]
[1732048453621,0.107463,93055.0,93039.0,0.05374]
[1732048453915,0.0573,93052.0,93013.0,0.053755]
[1732048454146,0.01,93046.0,93001.0,0.10906255]
[1732048454364,0.0473,93027.0,92995.0,0.10906255]
[1732048454612,0.0473,93027.0,92997.0,0.053765]
[1732048454856,0.215007,93021.0,93015.0,0.0008553]
[1732048455102,0.107508,93016.0,93015.0,0.0008553]
[1732048455567,0.0759,93025.0,93015.0,0.0008553]
[1732048456059,0.25,93027.0,93026.0,0.053748]
[1732048456518,0.0822,93037.0,93015.0,0.0008553]
[1732048456786,0.04345712,93033.0,93015.0,0.0008553]
[1732048457034,0.25,93045.0,93016.0,0.10906255]
[1732048457272,0.04272935,93042.0,93016.0,0.10906255]
[1732048457537,0.25,93039.0,93028.0,0.053746]
[1732048458196,0.25,93039.0,93034.0,0.053743]
[1732048458473,0.25,93051.0,93028.0,0.053747]
[1732048458729,0.107474,93046.0,93030.0,0.053745]
[1732048458986,0.464936,93051.0,93048.0,0.053735]
[1732048458987,0.25,93051.0,93048.0,0.053735]
[1732048459225,0.25,93051.0,93047.0,0.053735]
[1732048459470,0.25,93059.0,93048.0,0.053735]
[1732048459709,0.04346584,93053.0,93043.0,0.053738]
[1732048459891,0.25,93059.0,93052.0,0.053732]
[1732048460109,0.25,93059.0,93052.0,0.053733]
[1732048460316,0.25,93059.0,93032.0,0.053744]
[1732048460317,0.25,93059.0,93045.0,0.053737]
[1732048460528,0.25,93059.0,93046.0,0.053736]
[1732048460941,0.25,93059.0,93047.0,0.053736]
[1732048461356,0.25,93059.0,93043.0,0.053738]
[1732048461357,0.25,93059.0,93044.0,0.053738]
[1732048461589,0.25,93059.0,93042.0,0.053739]
[1732048461791,0.25,93059.0,93045.0,0.053737]
[1732048462008,0.162,93059.0,93046.0,0.053736]
[1732048462496,0.2517106,93060.0,93058.0,0.053729]
[1732048462733,0.2517106,93060.0,93059.0,0.053729]
[1732048462945,0.2517106,93060.0,93047.0,0.10906255]
[1732048462946,0.2517106,93060.0,93049.0,0.053735]
[1732048463166,0.2517106,93060.0,93047.0,0.10906255]
[1732048463386,0.2517106,93060.0,93050.0,0.053734]
[1732048463626,0.0017106,93060.0,93049.0,0.053735]
[1732048463879,0.0017106,93060.0,93055.0,0.053731]
[1732048464113,0.0017106,93060.0,93047.0,0.10906255]
[1732048464589,0.0017106,93060.0,93057.0,0.05373]
[1732048464823,0.0017106,93060.0,93055.0,0.053731]
[1732048465051,0.0017106,93060.0,93047.0,0.10906255]
[1732048465540,0.0017106,93060.0,93059.0,0.053729]
[1732048466025,0.0017106,93060.0,93057.0,0.05373]
[1732048466287,0.0017106,93060.0,93058.0,0.053729]
[1732048466505,0.0017106,93060.0,93047.0,0.10906255]
[1732048466728,0.0017106,93060.0,93029.0,0.0751]
[1732048466935,0.0017106,93060.0,93030.0,0.10906255]
[1732048466936,0.0499,93059.0,93030.0,0.10906255]
[1732048467143,0.107462,93057.0,93036.0,0.053742]
[1732048467365,0.0499,93059.0,93039.0,0.05374]
[1732048467575,0.25,93055.0,93042.0,0.053738]
[1732048467787,0.073349,93055.0,93042.0,0.053738]
[1732048467997,0.073349,93055.0,93019.0,0.01]
[1732048467998,0.0806,93048.0,93013.0,0.053755]
[1732048468226,0.0806,93048.0,93017.0,0.10906255]
[1732048468443,0.107474,93046.0,93017.0,0.10906255]
[1732048468654,0.0806,93048.0,93032.0,0.053744]
[1732048468871,0.0806,93048.0,93019.0,0.053752]
[1732048469103,0.0806,93058.0,93020.0,0.16281355]
[1732048469317,0.107464,93054.0,93041.0,0.03]
[1732048469523,0.10906255,93057.0,93020.0,0.10906255]
[1732048469735,0.214927,93055.0,93035.0,0.053743]
[1732048470169,0.214927,93055.0,93036.0,0.053742]
[1732048470386,0.10906255,93057.0,93036.0,0.053742]
[1732048470600,0.107464,93054.0,93037.0,0.053741]
[1732048470806,0.214926,93055.0,93036.0,0.053742]
[1732048471014,0.214926,93055.0,93032.0,0.053744]
[1732048471237,0.10906255,93057.0,93026.0,0.053747]
[1732048471457,0.107462,93056.0,93037.0,0.053741]
[1732048471670,0.10906255,93057.0,93037.0,0.053741]
[1732048471877,0.10906255,93057.0,93027.0,0.10906255]
[1732048472093,0.0806,93058.0,93027.0,0.10906255]
[1732048472318,0.0806,93058.0,93048.0,0.053735]
[1732048472594,0.0806,93058.0,93027.0,0.10906255]
[1732048472595,0.04302656,93059.0,93027.0,0.10906255]
[1732048472803,0.04302656,93059.0,93046.0,0.053736]
[1732048473023,0.295495,93069.0,93028.0,0.053747]
[1732048473229,0.295495,93069.0,93051.0,0.053733]
[1732048473230,0.107451,93066.0,93051.0,0.053733]
[1732048473439,0.107452,93065.0,93050.0,0.053734]
[1732048473651,0.10906255,93067.0,93049.0,0.053735]
[1732048473903,0.107453,93064.0,93049.0,0.053734]
[1732048474320,0.107453,93064.0,93049.0,0.107468]
[1732048474735,0.322352,93066.0,93050.0,0.053734]
[1732048474969,0.107452,93065.0,93050.0,0.053734]
[1732048475193,0.10906255,93067.0,93049.0,0.053734]
[1732048475411,0.12271422,93069.0,93029.0,0.10906255]
[1732048475896,0.23016122,93069.0,93054.0,0.053731]
[1732048476131,0.23016122,93069.0,93055.0,0.053731]
[1732048476567,0.12271422,93069.0,93054.0,0.053731]
[1732048476815,0.107449,93067.0,93052.0,0.053733]
[1732048477032,0.12271422,93069.0,93052.0,0.053733]
[1732048477253,0.12271422,93069.0,93053.0,0.053732]
[1732048477488,0.12271422,93069.0,93048.0,0.053735]
[1732048477750,0.04369362,93069.0,93044.0,0.10906255]
[1732048477940,0.04369362,93069.0,93063.0,0.053726]
[1732048478181,0.107438,93077.0,93063.0,0.053726]
[1732048478432,0.09377667,93073.0,93061.0,0.053727]
[1732048478679,0.09377667,93073.0,93059.0,0.053729]
[1732048479126,0.09377667,93073.0,93058.0,0.053729]
[1732048479363,0.09377667,93073.0,93060.0,0.048728]
[1732048480036,0.04387667,93073.0,93044.0,0.10906255]
[1732048480260,0.04387667,93073.0,93064.0,0.053726]
[1732048480483,0.183936,93079.0,93064.0,0.053726]
[1732048480484,0.0765,93079.0,93064.0,0.053726]
[1732048480732,0.107437,93078.0,93064.0,0.053726]
[1732048481192,0.12082191,93079.0,93057.0,0.05373]
[1732048481432,0.107444,93072.0,93059.0,0.053728]
[1732048481724,0.107444,93072.0,93044.0,0.10906255]
[1732048481725,0.214899,93067.0,93044.0,0.10906255]
[1732048481960,0.10906255,93066.0,93027.0,0.076]
[1732048482230,0.107481,93040.0,93027.0,0.053747]
[1732048482473,0.107481,93040.0,93008.0,0.33362246]
[1732048482474,0.0824,93056.0,93011.0,0.012]
[1732048482707,0.0824,93056.0,93034.0,0.053743]
[1732048482957,0.107465,93054.0,93040.0,0.05374]
[1732048483218,0.214926,93055.0,93040.0,0.05374]
[1732048483467,0.214926,93055.0,93038.0,0.0008551]
[1732048483468,0.10906255,93053.0,93038.0,0.0008551]
[1732048483728,0.107481,93039.0,93038.0,0.0008551]
[1732048485703,0.21654355,93039.0,93038.0,0.0008551]
[1732048485956,0.32194355,93039.0,93038.0,0.0008551]
[1732048487549,0.36524628,93039.0,93038.0,0.0008551]
[1732048488567,0.41054628,93039.0,93038.0,0.0008551]
[1732048488806,0.43054628,93039.0,93038.0,0.0008551]
[1732048489042,0.45047412,93039.0,93038.0,0.0008551]
[1732048490005,0.43047412,93039.0,93038.0,0.0008551]
[1732048491222,0.38754628,93039.0,93038.0,0.0008551]
[1732048492226,0.28006528,93039.0,93038.0,0.0008551]
[1732048492506,0.41054628,93039.0,93038.0,0.0008551]
[1732048493726,0.43044265,93039.0,93038.0,0.0008551]
[1732048493960,0.43044265,93039.0,93015.0,0.0008553]
[1732048493961,0.107508,93016.0,93015.0,0.0008553]
[1732048494218,0.28897055,93016.0,93015.0,0.0008553]
[1732048495676,0.023,93016.0,93015.0,0.0008553]
[1732048495938,0.023,93021.0,93015.0,0.0008553]
[1732048496161,0.10906255,93020.0,93015.0,0.0008553]
[1732048496383,0.023,93019.0,93015.0,0.0008553]
[1732048496610,0.13206255,93019.0,93015.0,0.0008553]
[1732048497350,0.107508,93016.0,93015.0,0.0008553]
[1732048497603,0.107507,93018.0,93015.0,0.0008553]
[1732048497849,0.13206255,93019.0,93015.0,0.0008553]
[1732048498778,0.023,93029.0,93015.0,0.0008553]
[1732048499010,0.04309532,93020.0,93015.0,0.0008553]
[1732048499254,0.21655555,93029.0,93015.0,0.0008553]
[1732048499479,0.10906255,93029.0,93020.0,0.053751]
[1732048499747,0.10906255,93029.0,93018.0,0.053752]
[1732048499968,0.10906255,93029.0,93015.0,0.0008553]
[1732048500201,0.107504,93020.0,93015.0,0.0008553]
[1732048500428,0.214989,93028.0,93015.0,0.0008553]
[1732048500429,0.10906255,93028.0,93015.0,0.0008553]
[1732048500685,0.107504,93020.0,93015.0,0.0008553]
[1732048500923,0.023,93025.0,93015.0,0.0008553]
[1732048501116,0.023,93022.0,93015.0,0.0008553]
[1732048501653,0.107489,93033.0,93018.0,0.053752]
[1732048501908,0.214965,93039.0,93015.0,0.0008553]
[1732048502163,0.107489,93033.0,93019.0,0.053751]
[1732048502405,0.107489,93033.0,93015.0,0.0008553]
[1732048502406,0.10906255,93033.0,93015.0,0.0008553]
[1732048502638,0.32404155,93032.0,93015.0,0.0008553]
[1732048502867,0.10906255,93032.0,93015.0,0.0008553]
[1732048503125,0.107505,93019.0,93015.0,0.0008553]
[1732048503361,0.023,93022.0,93015.0,0.0008553]
[1732048503580,0.130501,93022.0,93015.0,0.0008553]
[1732048504035,0.023,93022.0,93015.0,0.0008553]
[1732048504272,0.107508,93016.0,93015.0,0.0008553]
[1732048504582,0.13206255,93024.0,93015.0,0.0008553]
[1732048504678,0.023,93022.0,93015.0,0.0008553]
[1732048505121,0.13206255,93024.0,93015.0,0.0008553]
[1732048505377,0.107508,93016.0,93015.0,0.0008553]
[1732048505843,0.130508,93016.0,93015.0,0.0008553]
[1732048507237,0.023,93016.0,93015.0,0.0008553]
[1732048507422,0.107508,93016.0,93015.0,0.0008553]
[1732048507645,0.023,93016.0,93015.0,0.0008553]
[1732048507866,0.023,93023.0,93015.0,0.0008553]
[1732048508079,0.13206255,93023.0,93015.0,0.0008553]
[1732048509164,0.023,93023.0,93015.0,0.0008553]
[1732048509819,0.023,93023.0,93020.0,0.053751]
[1732048510037,0.04423971,93024.0,93015.0,0.0008553]
[1732048510255,0.04423971,93024.0,93018.0,0.053752]
[1732048510470,0.296169,93037.0,93018.0,0.053752]
[1732048510684,0.023,93032.0,93018.0,0.053753]
[1732048510906,0.023,93036.0,93015.0,0.0008553]
[1732048511243,0.107489,93033.0,93019.0,0.053752]
[1732048511326,0.107487,93034.0,93017.0,0.053753]
[1732048511543,0.107487,93034.0,93019.0,0.053751]
[1732048511763,0.023,93036.0,93019.0,0.053751]
[1732048511980,0.130486,93036.0,93021.0,0.053751]
[1732048512197,0.023,93034.0,93021.0,0.053751]
[1732048512445,0.023,93034.0,93016.0,0.053753]
[1732048512660,0.023,93032.0,93015.0,0.0008553]
[1732048512885,0.107494,93028.0,93015.0,0.0008553]
[1732048513096,0.023,93027.0,93015.0,0.0008553]
[1732048513530,0.0017104,93038.0,93015.0,0.0008553]
[1732048513531,0.023,93036.0,93015.0,0.0008553]
[1732048513789,0.023,93036.0,93016.0,0.107508]
[1732048513790,0.13206255,93036.0,93016.0,0.107508]
[1732048514009,0.023,93032.0,93017.0,0.053753]
[1732048514223,0.13206255,93036.0,93017.0,0.053753]
[1732048514443,0.023,93033.0,93018.0,0.053752]
[1732048514659,0.023,93033.0,93017.0,0.053753]
[1732048514660,0.107488,93033.0,93019.0,0.053752]
[1732048514883,0.023,93032.0,93017.0,0.053753]
[1732048515140,0.023,93032.0,93018.0,0.053753]
[1732048515614,0.214972,93035.0,93015.0,0.0008553]
[1732048515615,0.023,93031.0,93015.0,0.0008553]
[1732048515830,0.107494,93028.0,93015.0,0.0008553]
[1732048516077,0.107492,93030.0,93016.0,0.053754]
[1732048516321,0.107492,93030.0,93016.0,0.107508]
[1732048516558,0.107492,93030.0,93015.0,0.0008553]
[1732048516559,0.023,93029.0,93015.0,0.0008553]
[1732048516787,0.023,93027.0,93015.0,0.0008553]
[1732048517008,0.107496,93026.0,93015.0,0.0008553]
[1732048517241,0.023,93029.0,93015.0,0.0546093]
[1732048517451,0.023,93027.0,93015.0,0.0008553]
[1732048517629,0.023,93029.0,93016.0,0.053753]
[1732048517879,0.023,93029.0,93015.0,0.0008553]
[1732048518311,0.023,93036.0,93031.0,0.053745]
[1732048518532,0.04433562,93037.0,93017.0,0.053753]
[1732048518745,0.023,93037.0,93030.0,0.053745]
[1732048519062,0.023,93037.0,93032.0,0.053744]
[1732048519084,0.023,93037.0,93030.0,0.053745]
[1732048519266,0.023,93037.0,93028.0,0.053747]
[1732048519698,0.023,93037.0,93015.0,0.0008553]
[1732048519699,0.023,93037.0,93036.0,0.053742]
[1732048519906,0.04567972,93038.0,93036.0,0.053742]
[1732048519907,0.04567972,93038.0,93037.0,0.053742]
[1732048520118,0.04567972,93038.0,93036.0,0.107484]
[1732048520365,0.04567972,93038.0,93030.0,0.053745]
[1732048520597,0.04567972,93038.0,93034.0,0.053743]
[1732048520819,0.04567972,93038.0,93035.0,0.053743]
[1732048521038,0.04567972,93038.0,93033.0,0.053744]
[1732048521281,0.04567972,93038.0,93009.0,0.053758]
[1732048521282,0.0804,93037.0,93018.0,0.053752]
[1732048521523,0.107493,93029.0,93016.0,0.053753]
[1732048521740,0.107486,93036.0,93021.0,0.05375]
[1732048521978,0.042486,93035.0,93016.0,0.053754]
[1732048522220,0.107488,93034.0,93020.0,0.053751]
[1732048522463,0.18946255,93037.0,93021.0,0.053751]
[1732048522693,0.18946255,93037.0,93023.0,0.05375]
[1732048522938,0.18946255,93037.0,93020.0,0.053751]
[1732048523169,0.107487,93034.0,93022.0,0.05375]
[1732048523387,0.107487,93034.0,93000.0,0.053763]
[1732048523388,0.18946255,93037.0,93025.0,0.053748]
[1732048523634,0.04567972,93038.0,93014.0,0.0548754]
[1732048523887,0.04567972,93038.0,93037.0,0.053742]
[1732048524746,0.0017104,93038.0,93037.0,0.053742]
[1732048528331,0.0017104,93038.0,93035.0,0.053742]
[1732048528526,0.0017104,93038.0,93036.0,0.053742]
[1732048528728,0.0017104,93038.0,93037.0,0.053742]
[1732048529981,0.0017104,93038.0,93037.0,0.16280455]
[1732048530408,0.0017104,93038.0,93037.0,0.21200455]
[1732048530643,0.0017104,93038.0,93037.0,0.22200455]
[1732048530867,0.0017104,93038.0,93037.0,0.26570086]
[1732048531089,0.0017104,93038.0,93037.0,0.31950086]
[1732048531332,0.0017104,93038.0,93037.0,0.32950086]
[1732048531569,0.0017104,93038.0,93037.0,0.32750086]
[1732048532448,0.0017104,93038.0,93037.0,0.42950086]
[1732048532659,0.0017104,93038.0,93037.0,0.71552193]
[1732048532876,0.0017104,93038.0,93037.0,0.41750086]
[1732048533086,0.0017104,93038.0,93037.0,0.42750086]
[1732048533299,4e-07,93038.0,93037.0,0.42750086]
[1732048534863,4e-07,93038.0,93037.0,0.41750086]
[1732048535109,4e-07,93038.0,93037.0,0.42750086]
[1732048535609,0.0017102,93069.0,93045.0,0.02]
[1732048535840,0.0017102,93069.0,93045.0,0.28279955]
[1732048536510,0.0017102,93069.0,93051.0,0.01]
[1732048536770,0.0017102,93069.0,93068.0,0.053724]
[1732048537054,0.2066298,93106.0,93068.0,0.10906255]
[1732048537302,0.107407,93104.0,93069.0,0.16278555]
[1732048537532,0.2165026,93113.0,93076.0,0.0766]
[1732048537533,0.04272512,93107.0,93076.0,0.0766]
[1732048537786,0.21817255,93110.0,93077.0,0.10906255]
[1732048538010,0.107402,93109.0,93093.0,0.053709]
[1732048538234,0.11077255,93110.0,93094.0,0.053708]
[1732048538235,0.107402,93108.0,93094.0,0.053708]
[1732048538465,0.107402,93108.0,93093.0,0.053709]
[1732048538719,0.107402,93108.0,93095.0,0.053708]
[1732048539661,0.15336697,93110.0,93095.0,0.053708]
[1732048539890,0.107403,93107.0,93095.0,0.053708]
[1732048540146,0.0756,93106.0,93095.0,0.053708]
[1732048541523,0.0756,93106.0,93096.0,0.053707]
[1732048541745,0.0756,93106.0,93078.0,0.053718]
[1732048541975,0.0756,93106.0,93088.0,0.053712]
[1732048542288,0.12409599,93090.0,93047.0,0.0479]
[1732048542540,0.12409599,93090.0,93036.0,0.01]
[1732048542541,0.023,93088.0,93039.0,0.11906255]
[1732048542778,0.046,93077.0,93064.0,0.053726]
[1732048543211,0.046,93077.0,93039.0,0.11906255]
[1732048543212,0.04514616,93077.0,93065.0,0.053725]
[1732048543452,0.04514616,93077.0,93039.0,0.11906255]
[1732048543453,0.214878,93076.0,93059.0,0.053729]
[1732048543668,0.107441,93075.0,93052.0,0.053733]
[1732048543885,0.107441,93075.0,93062.0,0.053727]
[1732048544098,0.04514616,93077.0,93067.0,0.053724]
[1732048544311,0.04514616,93077.0,93069.0,0.053723]
[1732048544520,0.08923603,93077.0,93066.0,0.053725]
[1732048545166,0.08923603,93077.0,93068.0,0.053723]
[1732048545379,0.08923603,93077.0,93066.0,0.053725]
[1732048546237,0.08923603,93077.0,93063.0,0.053726]
[1732048546238,0.19667403,93077.0,93063.0,0.053726]
[1732048546444,0.04408987,93077.0,93065.0,0.10745]
[1732048546650,0.1216,93076.0,93042.0,0.10906255]
[1732048546855,0.107447,93069.0,93055.0,0.053731]
[1732048547063,0.107448,93069.0,93055.0,0.053731]
[1732048547282,0.12409599,93066.0,93043.0,0.053738]
[1732048547497,0.12409599,93066.0,93035.0,0.0008553]
[1732048547498,0.023,93064.0,93042.0,0.053738]
[1732048547714,0.107467,93052.0,93037.0,0.053742]
[1732048547924,0.322402,93052.0,93038.0,0.053741]
[1732048548136,0.107467,93052.0,93039.0,0.05374]
[1732048548348,0.290519,93058.0,93035.0,0.0008553]
[1732048548349,0.0756,93058.0,93035.0,0.0008553]
[1732048548557,0.13206255,93057.0,93041.0,0.053739]
[1732048548779,0.13206255,93057.0,93039.0,0.05374]
[1732048548780,0.107467,93052.0,93039.0,0.05374]
[1732048548993,0.0756,93058.0,93047.0,0.053735]
[1732048549206,0.0756,93058.0,93035.0,0.0008553]
[1732048549207,0.0756,93058.0,93051.0,0.053733]
[1732048549423,0.0756,93058.0,93052.0,0.053732]
[1732048549969,0.0756,93058.0,93036.0,0.10906255]
[1732048550058,0.0756,93058.0,93047.0,0.053736]
[1732048550271,0.0756,93058.0,93036.0,0.10906255]
[1732048550492,0.0756,93058.0,93044.0,0.053737]
[1732048550712,0.01,93057.0,93023.0,0.1]
[1732048550946,0.01,93057.0,93014.0,0.0011204]
[1732048550947,0.12409599,93044.0,93019.0,0.053752]
[1732048551203,0.12409599,93029.0,93014.0,0.0011204]
[1732048551424,0.12409599,93022.0,93014.0,0.0011204]
[1732048551697,0.01,93023.0,93014.0,0.0011204]
[1732048552163,0.107497,93026.0,93014.0,0.0011204]
[1732048552606,0.07469034,93028.0,93014.0,0.0011204]
[1732048553051,0.107495,93027.0,93014.0,0.0011204]
[1732048554040,0.03106255,93028.0,93014.0,0.0011204]
[1732048554268,0.04303051,93029.0,93014.0,0.0011204]
[1732048554269,0.107504,93019.0,93014.0,0.0011204]
[1732048554492,0.23956655,93019.0,93014.0,0.0011204]
[1732048554715,0.36746655,93019.0,93014.0,0.0011204]
[1732048556133,0.40735022,93019.0,93014.0,0.0011204]
[1732048556550,0.107508,93016.0,93014.0,0.0011204]
[1732048556553,0.107509,93015.0,93014.0,0.0011204]
[1732048556765,0.23957155,93015.0,93014.0,0.0011204]
[1732048558429,0.27945522,93015.0,93014.0,0.0011204]
[1732048558641,0.23957155,93015.0,93014.0,0.0011204]
[1732048559079,0.10906255,93015.0,93014.0,0.0011204]
[1732048559283,0.21657155,93015.0,93014.0,0.0011204]
[1732048560609,0.23957155,93015.0,93014.0,0.0011204]
[1732048561042,0.6021548,93019.0,93014.0,0.0011204]
[1732048561043,0.1721338,93019.0,93014.0,0.0011204]
[1732048561250,0.1256338,93019.0,93014.0,0.0011204]
[1732048561899,0.0442338,93019.0,93014.0,0.0011204]
[1732048562103,0.0442338,93019.0,93000.0,0.053763]
[1732048562104,0.0442338,93019.0,93010.0,0.053757]
[1732048562310,0.01,93018.0,92986.0,0.1]
[1732048562512,0.107516,93009.0,92992.0,0.053767]
[1732048562717,0.01,93011.0,92987.0,0.10906255]
[1732048562977,0.01,93011.0,92998.0,0.053764]
[1732048563187,0.01,93011.0,92987.0,0.10906255]
[1732048563188,0.01,93017.0,92987.0,0.10906255]
[1732048563394,0.117518,93008.0,92992.0,0.053767]
[1732048563597,0.01,93003.0,92974.0,0.00903681]
[1732048563823,0.01,93003.0,92991.0,0.053768]
[1732048564027,0.01,93003.0,92986.0,0.053771]
[1732048564233,0.01,93000.0,92977.0,0.043021]
[1732048564465,0.01,92999.0,92975.0,0.10906255]
[1732048564689,0.01,92999.0,92983.0,0.043018]
[1732048564901,0.01,92999.0,92975.0,0.10906255]
[1732048565169,0.01,92999.0,92983.0,0.043018]
[1732048565386,0.01,92999.0,92971.0,0.0004]
[1732048565387,0.01096319,92993.0,92971.0,0.043424]
[1732048565660,0.01096319,92993.0,92979.0,0.04302]
[1732048565901,0.01096319,92993.0,92977.0,0.043021]
[1732048566116,0.258041,93002.0,92971.0,0.0004]
[1732048566117,0.042991,93002.0,92971.0,0.0004]
[1732048566323,0.01,93031.0,92971.0,0.0004]
[1732048566324,0.01096319,92999.0,92987.0,0.043016]
[1732048566539,0.00096319,92999.0,92990.0,0.043015]
[1732048566745,0.00096319,92999.0,92992.0,0.043014]
[1732048566956,0.00096319,92999.0,92989.0,0.043015]
[1732048567157,0.38569308,93007.0,92972.0,0.043023]
[1732048567158,0.023,93006.0,92972.0,0.043023]
[1732048567364,0.023,93006.0,92971.0,0.0004]
[1732048567365,0.023,93004.0,92976.0,0.043021]
[1732048567565,0.023,93004.0,92980.0,0.043019]
[1732048567566,0.215053,93000.0,92980.0,0.043019]
[1732048567696,0.215053,93000.0,92976.0,0.043021]
[1732048567697,0.107529,92998.0,92981.0,0.043019]
[1732048568104,0.130528,92999.0,92971.0,0.10946255]
[1732048568305,0.023,92999.0,92985.0,0.043017]
[1732048568506,0.023,92999.0,92983.0,0.043018]
[1732048568734,0.023,92999.0,92977.0,0.04302]
[1732048569139,0.023,92999.0,92986.0,0.043017]
[1732048569414,0.023,92999.0,92986.0,0.043016]
[1732048569616,0.107513,93012.0,92995.0,0.043012]
[1732048569758,0.107513,93012.0,92972.0,0.043023]
[1732048569759,0.023,93006.0,92972.0,0.10906255]
[1732048570144,0.023,93006.0,92991.0,0.043014]
[1732048570362,0.023,93006.0,92973.0,0.10906255]
[1732048570363,0.023,93006.0,92978.0,0.04302]
[1732048570623,0.023,93006.0,92990.0,0.086029]
[1732048570846,0.31019982,93007.0,92995.0,0.043012]
[1732048570847,0.09361827,93007.0,92995.0,0.043012]
[1732048571053,0.09361827,93007.0,92982.0,0.043018]
[1732048571256,0.09361827,93007.0,92971.0,0.0004]
[1732048571257,0.09361827,93007.0,92983.0,0.10906255]
[1732048571459,0.09095508,93007.0,92997.0,0.043011]
[1732048571667,0.09095508,93007.0,92983.0,0.10906255]
[1732048571668,0.04425508,93007.0,93003.0,0.043009]
[1732048571870,0.04425508,93007.0,93005.0,0.043008]
[1732048572072,0.18450874,93017.0,93003.0,0.043009]
[1732048572274,0.18450874,93017.0,92993.0,0.043013]
[1732048572488,0.22751658,93017.0,93005.0,0.043008]
[1732048572685,0.22751658,93017.0,92985.0,0.10906255]
[1732048572804,0.04300784,93017.0,93008.0,0.043006]
[1732048573004,0.107517,93008.0,92985.0,0.10906255]
[1732048573232,0.18450874,93017.0,92990.0,0.043015]
[1732048573442,0.18450874,93017.0,92977.0,0.01]
[1732048573443,0.107516,93009.0,92993.0,0.043013]
[1732048573658,0.13206255,93016.0,92982.0,0.10906255]
[1732048573860,0.130513,93012.0,92996.0,0.043012]
[1732048574063,0.13206255,93012.0,92994.0,0.043013]
[1732048574269,0.18450874,93017.0,93003.0,0.043008]
[1732048574467,0.18450874,93017.0,93007.0,0.043007]
[1732048574673,0.12415475,93016.0,93008.0,0.043006]
[1732048575094,0.12415475,93016.0,93003.0,0.043009]
[1732048575320,0.12415475,93016.0,93004.0,0.043008]
[1732048575516,0.12415475,93016.0,93000.0,0.04301]
[1732048575773,0.12415475,93016.0,92983.0,0.043018]
[1732048575982,0.12415475,93016.0,93004.0,0.043008]
[1732048576191,0.12415475,93016.0,92984.0,0.10906255]
[1732048576192,0.12415475,93016.0,93003.0,0.043009]
[1732048576408,0.12415475,93016.0,93002.0,0.043009]
[1732048576617,0.12415475,93008.0,92975.0,0.043022]
[1732048576819,0.12415475,93008.0,92983.0,0.10906255]
[1732048577056,0.12415475,93008.0,92990.0,0.043015]
[1732048577260,0.215034,93009.0,92975.0,0.053022]
[1732048577261,0.12415475,93001.0,92989.0,0.043015]
[1732048577472,0.12415475,93001.0,92990.0,0.043014]
[1732048577675,0.12415475,93001.0,92989.0,0.043015]
[1732048577919,0.12415475,93001.0,92991.0,0.043014]
[1732048578120,0.12415475,93001.0,92984.0,0.043018]
[1732048578424,0.12415475,93001.0,92965.0,0.043026]
[1732048578425,0.107525,93001.0,92987.0,0.043016]
[1732048578629,0.0482,93000.0,92981.0,0.043019]
[1732048578841,0.0482,93000.0,92987.0,0.043016]
[1732048579066,0.0482,93000.0,92983.0,0.043018]
[1732048579289,0.0482,93000.0,92987.0,0.043016]
[1732048579529,0.190129,92999.0,92983.0,0.043018]
[1732048579737,0.0826,92999.0,92989.0,0.043015]
[1732048580148,0.0826,92999.0,92988.0,0.043015]
[1732048580623,0.0826,92999.0,92989.0,0.043015]
[1732048580835,0.0826,92999.0,92988.0,0.043016]
[1732048581075,0.0826,92999.0,92987.0,0.043016]
[1732048581306,0.0826,92999.0,92985.0,0.043017]